[Event "November 21 Late 2023"]
[Site "https://www.chess.com"]
[Date "2023.11.21"]
[Round "5"]
[White "FuenfgegenWilly"]
[Black "DAVIDHDZSTS"]
[Result "1-0"]
[Board "102"]
[TimeControl "180+1"]
[WhiteElo "2487"]
[BlackElo "1865"]
[WhiteClock "0:01:16"]
[BlackClock "0:00:00"]

1. e4 {[%clk 0:02:54]}  c5 {[%clk 0:02:57]} 2. Na3 {[%clk 0:02:54]}  e6 {[%clk 0:02:56]} 3. c3 {[%clk 0:02:50]}  a6 {[%clk 0:02:53]} 4. d4 {[%clk 0:02:49]}  cxd4 {[%clk 0:02:46]} 5. cxd4 {[%clk 0:02:50]}  d5 {[%clk 0:02:45]} 6. exd5 {[%clk 0:02:46]}  exd5 {[%clk 0:02:38]} 7. Nf3 {[%clk 0:02:47]}  Nf6 {[%clk 0:02:36]} 8. Bd3 {[%clk 0:02:47]}  Bg4 {[%clk 0:02:30]} 9. O-O {[%clk 0:02:46]}  Be7 {[%clk 0:02:28]} 10. h3 {[%clk 0:02:45]}  Bh5 {[%clk 0:02:26]} 11. Nc2 {[%clk 0:02:41]}  O-O {[%clk 0:02:24]} 12. Ne3 {[%clk 0:02:41]}  Nc6 {[%clk 0:02:19]} 13. g4 {[%clk 0:02:34]}  Bg6 {[%clk 0:02:16]} 14. Ne5 {[%clk 0:02:32]}  Nxe5 {[%clk 0:01:45]} 15. dxe5 {[%clk 0:02:30]}  Ne4 {[%clk 0:01:31]} 16. f4 {[%clk 0:02:17]}  f5 {[%clk 0:00:35]} 17. exf6 {[%clk 0:01:43]}  Nxf6 {[%clk 0:00:20]} 18. Bxg6 {[%clk 0:01:40]}  hxg6 {[%clk 0:00:20]} 19. g5 {[%clk 0:01:40]}  Ne4 {[%clk 0:00:14]} 20. Qxd5+ {[%clk 0:01:39]}  Qxd5 {[%clk 0:00:14]} 21. Nxd5 {[%clk 0:01:40]}  Bc5+ {[%clk 0:00:14]} 22. Be3 {[%clk 0:01:40]}  Bxe3+ {[%clk 0:00:13]} 23. Nxe3 {[%clk 0:01:41]}  Rad8 {[%clk 0:00:10]} 24. Rae1 {[%clk 0:01:29]}  Ng3 {[%clk 0:00:10]} 25. Rf2 {[%clk 0:01:26]}  Rd4 {[%clk 0:00:09]} 26. Ng2 {[%clk 0:01:18]}  Nf5 {[%clk 0:00:06]} 27. Rfe2 {[%clk 0:01:18]}  Rd3 {[%clk 0:00:05]} 28. Kh2 {[%clk 0:01:18]}  Nh4 {[%clk 0:00:00]} 29. Nxh4 {[%clk 0:01:16]} 1-0

[Event "November 21 Late 2023"]
[Site "https://www.chess.com"]
[Date "2023.11.21"]
[Round "5"]
[White "Zakarian, David"]
[Black "Martins, Bruno Andre Leite"]
[Result "1-0"]
[Board "107"]
[TimeControl "180+1"]
[WhiteFideId "13301276"]
[BlackFideId "1942255"]
[WhiteElo "2286"]
[BlackElo "2307"]
[WhiteTeam "ARM"]
[BlackTeam "POR"]
[WhiteClock "0:00:12"]
[BlackClock "0:00:00"]

1. f4 {[%clk 0:03:00]}  g6 {[%clk 0:02:53]} 2. Nf3 {[%clk 0:03:00]}  Bg7 {[%clk 0:02:53]} 3. e4 {[%clk 0:02:57]}  d6 {[%clk 0:02:53]} 4. Bc4 {[%clk 0:02:56]}  c5 {[%clk 0:02:48]} 5. c3 {[%clk 0:02:52]}  Nc6 {[%clk 0:02:47]} 6. O-O {[%clk 0:02:50]}  e6 {[%clk 0:02:46]} 7. d3 {[%clk 0:02:49]}  Nge7 {[%clk 0:02:45]} 8. Bb3 {[%clk 0:02:45]}  O-O {[%clk 0:02:44]} 9. Qe1 {[%clk 0:02:45]}  d5 {[%clk 0:02:23]} 10. Nbd2 {[%clk 0:02:16]}  b6 {[%clk 0:02:17]} 11. Kh1 {[%clk 0:02:07]}  Ba6 {[%clk 0:02:14]} 12. Bc2 {[%clk 0:02:07]}  b5 {[%clk 0:02:10]} 13. e5 {[%clk 0:01:58]}  b4 {[%clk 0:02:08]} 14. c4 {[%clk 0:01:56]}  Nf5 {[%clk 0:01:59]} 15. Ba4 {[%clk 0:01:45]}  Bb7 {[%clk 0:01:51]} 16. Nb3 {[%clk 0:01:28]}  Qb6 {[%clk 0:01:36]} 17. g4 {[%clk 0:01:21]}  dxc4 {[%clk 0:01:23]} 18. gxf5 {[%clk 0:01:21]}  cxb3 {[%clk 0:01:20]} 19. f6 {[%clk 0:01:21]}  Bh8 {[%clk 0:01:04]} 20. Be3 {[%clk 0:01:06]}  Rad8 {[%clk 0:01:00]} 21. Bxb3 {[%clk 0:00:40]}  Rxd3 {[%clk 0:00:57]} 22. Bc4 {[%clk 0:00:40]}  Rd4 {[%clk 0:00:49]} 23. b3 {[%clk 0:00:37]}  Rfd8 {[%clk 0:00:46]} 24. Kg1 {[%clk 0:00:36]}  Rxc4 {[%clk 0:00:37]} 25. bxc4 {[%clk 0:00:35]}  Nd4 {[%clk 0:00:38]} 26. Bxd4 {[%clk 0:00:20]}  cxd4 {[%clk 0:00:39]} 27. Rc1 {[%clk 0:00:19]}  d3+ {[%clk 0:00:15]} 28. c5 {[%clk 0:00:18]}  Qc6 {[%clk 0:00:14]} 29. Qe3 {[%clk 0:00:18]}  d2 {[%clk 0:00:14]} 30. Rcd1 {[%clk 0:00:17]}  Rd5 {[%clk 0:00:09]} 31. Rxd2 {[%clk 0:00:17]}  Rxd2 {[%clk 0:00:09]} 32. Qxd2 {[%clk 0:00:17]}  Qxc5+ {[%clk 0:00:10]} 33. Qf2 {[%clk 0:00:16]}  Qc6 {[%clk 0:00:09]} 34. Qe3 {[%clk 0:00:15]}  h6 {[%clk 0:00:09]} 35. Qxa7 {[%clk 0:00:15]}  Kh7 {[%clk 0:00:07]} 36. Qe3 {[%clk 0:00:16]}  Qd5 {[%clk 0:00:03]} 37. Kf2 {[%clk 0:00:16]}  Qc6 {[%clk 0:00:04]} 38. Re1 {[%clk 0:00:16]}  Qd5 {[%clk 0:00:04]} 39. Re2 {[%clk 0:00:16]}  Ba6 {[%clk 0:00:04]} 40. Rd2 {[%clk 0:00:17]}  Qc4 {[%clk 0:00:04]} 41. Qe1 {[%clk 0:00:13]}  Qxf4 {[%clk 0:00:05]} 42. Rd7 {[%clk 0:00:12]}  g5 {[%clk 0:00:02]} 43. Qb1+ {[%clk 0:00:12]}  Qf5 {[%clk 0:00:01]} 44. Qxf5+ {[%clk 0:00:12]}  exf5 {[%clk 0:00:02]} 45. Rxf7+ {[%clk 0:00:13]}  Kg6 {[%clk 0:00:02]} 46. Ra7 {[%clk 0:00:13]}  Bc4 {[%clk 0:00:00]} 47. Ra4 {[%clk 0:00:12]} 1-0

[Event "November 21 Late 2023"]
[Site "https://www.chess.com"]
[Date "2023.11.21"]
[Round "5"]
[White "YouShallNotPass001"]
[Black "TheAlienParty"]
[Result "1-0"]
[Board "109"]
[TimeControl "180+1"]
[WhiteElo "2436"]
[BlackElo "2385"]
[WhiteClock "0:00:07"]
[BlackClock "0:00:00"]

1. Nf3 {[%clk 0:03:00]}  Nf6 {[%clk 0:02:53]} 2. e3 {[%clk 0:03:01]}  d5 {[%clk 0:02:52]} 3. Be2 {[%clk 0:03:02]}  c5 {[%clk 0:02:51]} 4. O-O {[%clk 0:03:03]}  Nc6 {[%clk 0:02:50]} 5. d4 {[%clk 0:03:01]}  e6 {[%clk 0:02:48]} 6. a3 {[%clk 0:03:00]}  a6 {[%clk 0:02:47]} 7. dxc5 {[%clk 0:02:59]}  Bxc5 {[%clk 0:02:47]} 8. b4 {[%clk 0:03:00]}  Bd6 {[%clk 0:02:46]} 9. Nbd2 {[%clk 0:03:01]}  O-O {[%clk 0:02:46]} 10. c4 {[%clk 0:03:01]}  Ne5 {[%clk 0:02:39]} 11. Bb2 {[%clk 0:02:56]}  Nxc4 {[%clk 0:02:37]} 12. Bxc4 {[%clk 0:02:54]}  dxc4 {[%clk 0:02:36]} 13. Nxc4 {[%clk 0:02:55]}  Bc7 {[%clk 0:02:31]} 14. Qb3 {[%clk 0:02:55]}  b5 {[%clk 0:02:26]} 15. Nce5 {[%clk 0:02:52]}  Qe7 {[%clk 0:02:23]} 16. Nc6 {[%clk 0:02:45]}  Qd6 {[%clk 0:02:16]} 17. Rac1 {[%clk 0:02:41]}  Bb7 {[%clk 0:02:03]} 18. Be5 {[%clk 0:01:53]}  Qd7 {[%clk 0:01:55]} 19. Rfd1 {[%clk 0:01:43]}  Qe8 {[%clk 0:01:38]} 20. Bxc7 {[%clk 0:01:27]}  Bxc6 {[%clk 0:01:36]} 21. Bd6 {[%clk 0:01:27]}  Bd5 {[%clk 0:01:28]} 22. Qb2 {[%clk 0:01:18]}  h6 {[%clk 0:00:59]} 23. Bxf8 {[%clk 0:01:12]}  Kxf8 {[%clk 0:00:57]} 24. Rc7 {[%clk 0:01:08]}  Qb8 {[%clk 0:00:53]} 25. Qc3 {[%clk 0:00:59]}  Bc4 {[%clk 0:00:50]} 26. Qe5 {[%clk 0:00:50]}  Nd5 {[%clk 0:00:41]} 27. Rd7 {[%clk 0:00:25]}  Qb6 {[%clk 0:00:17]} 28. e4 {[%clk 0:00:20]}  Nf6 {[%clk 0:00:15]} 29. R7d6 {[%clk 0:00:14]}  Qb8 {[%clk 0:00:04]} 30. Qc5 {[%clk 0:00:10]}  Kg8 {[%clk 0:00:04]} 31. Qd4 {[%clk 0:00:07]}  Qc7 {[%clk 0:00:03]} 32. Rd8+ {[%clk 0:00:05]}  Rxd8 {[%clk 0:00:04]} 33. Qxd8+ {[%clk 0:00:05]}  Qxd8 {[%clk 0:00:04]} 34. Rxd8+ {[%clk 0:00:06]}  Kh7 {[%clk 0:00:05]} 35. Nd2 {[%clk 0:00:06]}  Be2 {[%clk 0:00:04]} 36. f3 {[%clk 0:00:07]}  Bd1 {[%clk 0:00:04]} 37. Ra8 {[%clk 0:00:07]}  Bc2 {[%clk 0:00:04]} 38. Rxa6 {[%clk 0:00:07]}  h5 {[%clk 0:00:04]} 39. Ra7 {[%clk 0:00:07]}  h4 {[%clk 0:00:04]} 40. Kf1 {[%clk 0:00:08]}  Kg6 {[%clk 0:00:04]} 41. Kf2 {[%clk 0:00:08]}  h3 {[%clk 0:00:05]} 42. g3 {[%clk 0:00:08]}  Bd3 {[%clk 0:00:05]} 43. Ke3 {[%clk 0:00:09]}  Bc2 {[%clk 0:00:05]} 44. Rb7 {[%clk 0:00:09]}  Ba4 {[%clk 0:00:04]} 45. f4 {[%clk 0:00:08]}  Ne8 {[%clk 0:00:04]} 46. Nf3 {[%clk 0:00:09]}  f6 {[%clk 0:00:04]} 47. Nh4+ {[%clk 0:00:08]}  Kh6 {[%clk 0:00:04]} 48. f5 {[%clk 0:00:07]}  exf5 {[%clk 0:00:03]} 49. Nxf5+ {[%clk 0:00:07]}  Kg6 {[%clk 0:00:00]} 50. Re7 {[%clk 0:00:07]} 1-0

[Event "November 21 Late 2023"]
[Site "https://www.chess.com"]
[Date "2023.11.21"]
[Round "5"]
[White "Bogaudinov, Rushan"]
[Black "Jarocka, Liwia"]
[Result "1/2-1/2"]
[Board "110"]
[TimeControl "180+1"]
[WhiteFideId "4129288"]
[BlackFideId "21807558"]
[WhiteElo "1908"]
[BlackElo "2001"]
[WhiteTeam "RUS"]
[BlackTeam "POL"]
[WhiteClock "0:00:16"]
[BlackClock "0:00:43"]

1. d4 {[%clk 0:02:03]}  d5 {[%clk 0:02:57]} 2. Nf3 {[%clk 0:02:03]}  Nf6 {[%clk 0:02:56]} 3. e3 {[%clk 0:02:03]}  e6 {[%clk 0:02:55]} 4. Be2 {[%clk 0:02:03]}  c5 {[%clk 0:02:55]} 5. O-O {[%clk 0:02:04]}  Nc6 {[%clk 0:02:55]} 6. a3 {[%clk 0:02:04]}  Bd6 {[%clk 0:02:55]} 7. dxc5 {[%clk 0:02:04]}  Bxc5 {[%clk 0:02:55]} 8. b4 {[%clk 0:02:05]}  Bb6 {[%clk 0:02:53]} 9. Bb2 {[%clk 0:02:05]}  O-O {[%clk 0:02:52]} 10. c4 {[%clk 0:02:06]}  a5 {[%clk 0:02:46]} 11. c5 {[%clk 0:02:05]}  Bc7 {[%clk 0:02:45]} 12. b5 {[%clk 0:02:05]}  Ne7 {[%clk 0:02:39]} 13. a4 {[%clk 0:02:05]}  Ng6 {[%clk 0:02:37]} 14. Nbd2 {[%clk 0:02:05]}  Re8 {[%clk 0:02:36]} 15. Nb3 {[%clk 0:01:59]}  e5 {[%clk 0:02:34]} 16. b6 {[%clk 0:01:54]}  Bb8 {[%clk 0:02:33]} 17. Bb5 {[%clk 0:01:53]}  Bd7 {[%clk 0:02:31]} 18. Qe2 {[%clk 0:01:42]}  Bxb5 {[%clk 0:02:24]} 19. axb5 {[%clk 0:01:42]}  a4 {[%clk 0:02:19]} 20. Nbd2 {[%clk 0:01:30]}  Qc8 {[%clk 0:02:13]} 21. Rfc1 {[%clk 0:01:29]}  e4 {[%clk 0:02:05]} 22. Nd4 {[%clk 0:01:20]}  Ng4 {[%clk 0:02:02]} 23. h3 {[%clk 0:01:18]}  N4e5 {[%clk 0:02:02]} 24. c6 {[%clk 0:01:13]}  Bd6 {[%clk 0:01:58]} 25. Ba3 {[%clk 0:01:06]}  Bxa3 {[%clk 0:01:55]} 26. Rxa3 {[%clk 0:01:07]}  Nd3 {[%clk 0:01:55]} 27. Rca1 {[%clk 0:01:01]}  Qd8 {[%clk 0:01:40]} 28. cxb7 {[%clk 0:00:55]}  Rb8 {[%clk 0:01:35]} 29. Nc6 {[%clk 0:00:55]}  Qxb6 {[%clk 0:01:35]} 30. Nxb8 {[%clk 0:00:55]}  Rxb8 {[%clk 0:01:36]} 31. Rxd3 {[%clk 0:00:50]}  exd3 {[%clk 0:01:35]} 32. Qxd3 {[%clk 0:00:51]}  Qxb7 {[%clk 0:01:34]} 33. Rxa4 {[%clk 0:00:50]}  Qxb5 {[%clk 0:01:30]} 34. Qxb5 {[%clk 0:00:48]}  Rxb5 {[%clk 0:01:31]} 35. Ra8+ {[%clk 0:00:47]}  Nf8 {[%clk 0:01:31]} 36. Nf3 {[%clk 0:00:47]}  g6 {[%clk 0:01:28]} 37. Nd4 {[%clk 0:00:41]}  Rb1+ {[%clk 0:01:28]} 38. Kh2 {[%clk 0:00:41]}  Kg7 {[%clk 0:01:27]} 39. Rd8 {[%clk 0:00:40]}  Rb2 {[%clk 0:01:20]} 40. Kg3 {[%clk 0:00:30]}  Ne6 {[%clk 0:01:20]} 41. Rxd5 {[%clk 0:00:28]}  Nxd4 {[%clk 0:01:14]} 42. Rxd4 {[%clk 0:00:28]}  h5 {[%clk 0:01:13]} 43. h4 {[%clk 0:00:28]}  Rb3 {[%clk 0:01:13]} 44. Kf4 {[%clk 0:00:27]}  Rb2 {[%clk 0:01:13]} 45. Kf3 {[%clk 0:00:26]}  Ra2 {[%clk 0:01:14]} 46. Rd3 {[%clk 0:00:24]}  Rb2 {[%clk 0:01:14]} 47. e4 {[%clk 0:00:24]}  Ra2 {[%clk 0:01:14]} 48. Re3 {[%clk 0:00:23]}  Kf6 {[%clk 0:01:13]} 49. Kg3 {[%clk 0:00:21]}  Ke6 {[%clk 0:01:10]} 50. f4 {[%clk 0:00:20]}  Rb2 {[%clk 0:01:09]} 51. Kf3 {[%clk 0:00:20]}  Ra2 {[%clk 0:01:10]} 52. g4 {[%clk 0:00:20]}  hxg4+ {[%clk 0:01:09]} 53. Kxg4 {[%clk 0:00:21]}  Rg2+ {[%clk 0:01:08]} 54. Rg3 {[%clk 0:00:21]}  Re2 {[%clk 0:01:08]} 55. e5 {[%clk 0:00:21]}  Re1 {[%clk 0:01:01]} 56. h5 {[%clk 0:00:20]}  gxh5+ {[%clk 0:00:58]} 57. Kxh5 {[%clk 0:00:21]}  Rf1 {[%clk 0:00:51]} 58. Kg5 {[%clk 0:00:20]}  Rf2 {[%clk 0:00:46]} 59. Rb3 {[%clk 0:00:18]}  Rg2+ {[%clk 0:00:45]} 60. Kh4 {[%clk 0:00:18]}  Kf5 {[%clk 0:00:43]} 61. Kh3 {[%clk 0:00:17]}  Rg1 {[%clk 0:00:43]} 62. Rb7 {[%clk 0:00:17]}  Kxf4 {[%clk 0:00:42]} 63. Rxf7+ {[%clk 0:00:17]}  Kxe5 {[%clk 0:00:42]} 64. Re7+ {[%clk 0:00:17]}  Kf6 {[%clk 0:00:42]} 65. Re3 {[%clk 0:00:17]}  Rg6 {[%clk 0:00:42]} 66. Rg3 {[%clk 0:00:17]}  Kg7 {[%clk 0:00:42]} 67. Rxg6+ {[%clk 0:00:16]}  Kxg6 {[%clk 0:00:43]} 1/2-1/2

[Event "November 21 Late 2023"]
[Site "https://www.chess.com"]
[Date "2023.11.21"]
[Round "5"]
[White "Maltsevskaya, Aleksandra"]
[Black "zano2023"]
[Result "0-1"]
[Board "112"]
[TimeControl "180+1"]
[WhiteFideId "24174041"]
[WhiteElo "2296"]
[BlackElo "2204"]
[WhiteTeam "POL"]
[WhiteClock "0:00:01"]
[BlackClock "0:00:34"]

1. Nf3 {[%clk 0:02:07]}  d6 {[%clk 0:02:46]} 2. g3 {[%clk 0:02:08]}  e5 {[%clk 0:02:29]} 3. d3 {[%clk 0:02:02]}  Nf6 {[%clk 0:02:28]} 4. Bg2 {[%clk 0:01:59]}  Be7 {[%clk 0:02:29]} 5. O-O {[%clk 0:01:55]}  O-O {[%clk 0:02:30]} 6. Nc3 {[%clk 0:01:55]}  Re8 {[%clk 0:02:30]} 7. e4 {[%clk 0:01:53]}  Nbd7 {[%clk 0:02:30]} 8. Nh4 {[%clk 0:01:53]}  Nf8 {[%clk 0:02:29]} 9. f4 {[%clk 0:01:54]}  exf4 {[%clk 0:02:20]} 10. Bxf4 {[%clk 0:01:52]}  Ng6 {[%clk 0:02:17]} 11. Nf5 {[%clk 0:01:39]}  Nxf4 {[%clk 0:02:14]} 12. Rxf4 {[%clk 0:01:30]}  Bf8 {[%clk 0:02:07]} 13. Qf3 {[%clk 0:01:19]}  c6 {[%clk 0:02:06]} 14. Nh6+ {[%clk 0:01:18]}  gxh6 {[%clk 0:02:03]} 15. Rxf6 {[%clk 0:01:18]}  Be6 {[%clk 0:02:01]} 16. Rf1 {[%clk 0:01:05]}  Bg7 {[%clk 0:02:02]} 17. Rf4 {[%clk 0:01:04]}  Qb6+ {[%clk 0:01:42]} 18. Kh1 {[%clk 0:01:03]}  Qxb2 {[%clk 0:01:43]} 19. Ne2 {[%clk 0:01:03]}  Qe5 {[%clk 0:01:38]} 20. d4 {[%clk 0:00:57]}  Qg5 {[%clk 0:01:38]} 21. h4 {[%clk 0:00:53]}  Qe7 {[%clk 0:01:33]} 22. Kh2 {[%clk 0:00:48]}  d5 {[%clk 0:01:33]} 23. e5 {[%clk 0:00:42]}  Rf8 {[%clk 0:01:31]} 24. Rf6 {[%clk 0:00:38]}  Bxf6 {[%clk 0:01:17]} 25. exf6 {[%clk 0:00:38]}  Qd7 {[%clk 0:01:16]} 26. Qe3 {[%clk 0:00:36]}  Kh8 {[%clk 0:01:14]} 27. Qxh6 {[%clk 0:00:35]}  Rg8 {[%clk 0:01:15]} 28. Nf4 {[%clk 0:00:30]}  Bg4 {[%clk 0:01:11]} 29. Re1 {[%clk 0:00:27]}  Rae8 {[%clk 0:01:10]} 30. Rxe8 {[%clk 0:00:15]}  Qxe8 {[%clk 0:01:10]} 31. Nd3 {[%clk 0:00:16]}  Rg6 {[%clk 0:01:06]} 32. Qf4 {[%clk 0:00:15]}  h5 {[%clk 0:00:56]} 33. Ne5 {[%clk 0:00:15]}  Qg8 {[%clk 0:00:48]} 34. Nxg6+ {[%clk 0:00:14]}  Qxg6 {[%clk 0:00:48]} 35. c3 {[%clk 0:00:11]}  Kh7 {[%clk 0:00:48]} 36. Kg1 {[%clk 0:00:09]}  Qb1+ {[%clk 0:00:48]} 37. Bf1 {[%clk 0:00:10]}  Bf5 {[%clk 0:00:42]} 38. Kh2 {[%clk 0:00:08]}  Qxa2+ {[%clk 0:00:40]} 39. Kg1 {[%clk 0:00:08]}  Qc2 {[%clk 0:00:40]} 40. Qg5 {[%clk 0:00:07]}  Bg6 {[%clk 0:00:40]} 41. Qf4 {[%clk 0:00:03]}  Qxc3 {[%clk 0:00:38]} 42. Be2 {[%clk 0:00:03]}  Qe1+ {[%clk 0:00:36]} 43. Bf1 {[%clk 0:00:03]}  Qe4 {[%clk 0:00:35]} 44. Qb8 {[%clk 0:00:03]}  Qxd4+ {[%clk 0:00:35]} 45. Kh2 {[%clk 0:00:03]}  Qf2+ {[%clk 0:00:34]} 46. Bg2 {[%clk 0:00:01]}  Be4 {[%clk 0:00:34]} 0-1

[Event "November 21 Late 2023"]
[Site "https://www.chess.com"]
[Date "2023.11.21"]
[Round "5"]
[White "Szente Varga, Fruzsina"]
[Black "Shapiro, Viktor"]
[Result "0-1"]
[Board "114"]
[TimeControl "180+1"]
[WhiteFideId "712264"]
[BlackFideId "4175700"]
[WhiteElo "1994"]
[BlackElo "2084"]
[WhiteTeam "HUN"]
[BlackTeam "RUS"]
[WhiteClock "0:00:00"]
[BlackClock "0:00:05"]

1. e4 {[%clk 0:03:00]}  Nf6 {[%clk 0:03:00]} 2. e5 {[%clk 0:02:57]}  Nd5 {[%clk 0:03:00]} 3. d4 {[%clk 0:02:56]}  d6 {[%clk 0:02:59]} 4. Bc4 {[%clk 0:02:55]}  Nb6 {[%clk 0:02:59]} 5. Bb3 {[%clk 0:02:53]}  a5 {[%clk 0:02:58]} 6. Qh5 {[%clk 0:02:38]}  g6 {[%clk 0:02:54]} 7. Qf3 {[%clk 0:02:38]}  d5 {[%clk 0:02:50]} 8. c3 {[%clk 0:02:34]}  Bf5 {[%clk 0:02:47]} 9. Nd2 {[%clk 0:02:32]}  a4 {[%clk 0:02:46]} 10. Bd1 {[%clk 0:02:32]}  h5 {[%clk 0:02:40]} 11. h3 {[%clk 0:02:28]}  e6 {[%clk 0:02:30]} 12. Ne2 {[%clk 0:02:25]}  c5 {[%clk 0:02:25]} 13. Rg1 {[%clk 0:02:23]}  h4 {[%clk 0:02:15]} 14. Nf1 {[%clk 0:02:04]}  Nc6 {[%clk 0:02:12]} 15. Ne3 {[%clk 0:01:53]}  cxd4 {[%clk 0:02:08]} 16. cxd4 {[%clk 0:01:53]}  Bb4+ {[%clk 0:02:06]} 17. Bd2 {[%clk 0:01:53]}  Bxd2+ {[%clk 0:02:05]} 18. Kxd2 {[%clk 0:01:54]}  a3 {[%clk 0:02:02]} 19. b3 {[%clk 0:01:52]}  Qe7 {[%clk 0:02:00]} 20. Nxf5 {[%clk 0:01:50]}  gxf5 {[%clk 0:01:59]} 21. Rc1 {[%clk 0:01:38]}  Qg5+ {[%clk 0:01:50]} 22. Qe3 {[%clk 0:01:34]}  Rg8 {[%clk 0:01:26]} 23. f4 {[%clk 0:01:30]}  Qe7 {[%clk 0:01:25]} 24. g4 {[%clk 0:01:29]}  hxg3 {[%clk 0:01:20]} 25. Rxg3 {[%clk 0:01:28]}  Rxg3 {[%clk 0:01:20]} 26. Qxg3 {[%clk 0:01:29]}  Qb4+ {[%clk 0:01:19]} 27. Qc3 {[%clk 0:01:29]}  Kd7 {[%clk 0:01:17]} 28. Bc2 {[%clk 0:01:12]}  Rg8 {[%clk 0:01:07]} 29. Rg1 {[%clk 0:01:11]}  Rxg1 {[%clk 0:01:03]} 30. Qxb4 {[%clk 0:01:11]}  Nxb4 {[%clk 0:01:01]} 31. Nxg1 {[%clk 0:01:11]}  Nxa2 {[%clk 0:01:01]} 32. Bd1 {[%clk 0:01:00]}  Nb4 {[%clk 0:01:01]} 33. Kc1 {[%clk 0:00:54]}  Nd3+ {[%clk 0:00:56]} 34. Kb1 {[%clk 0:00:55]}  Nxf4 {[%clk 0:00:57]} 35. h4 {[%clk 0:00:54]}  Ke7 {[%clk 0:00:45]} 36. Ka2 {[%clk 0:00:54]}  Nd7 {[%clk 0:00:37]} 37. Kxa3 {[%clk 0:00:53]}  Nb8 {[%clk 0:00:37]} 38. Kb4 {[%clk 0:00:50]}  Nc6+ {[%clk 0:00:37]} 39. Kc5 {[%clk 0:00:46]}  Nd3+ {[%clk 0:00:36]} 40. Kb6 {[%clk 0:00:46]}  Nxd4 {[%clk 0:00:35]} 41. Kxb7 {[%clk 0:00:46]}  Nf2 {[%clk 0:00:34]} 42. Bf3 {[%clk 0:00:30]}  Nxb3 {[%clk 0:00:34]} 43. h5 {[%clk 0:00:26]}  Nd3 {[%clk 0:00:24]} 44. Bd1 {[%clk 0:00:20]}  Nd4 {[%clk 0:00:19]} 45. h6 {[%clk 0:00:18]}  Nxe5 {[%clk 0:00:18]} 46. Nh3 {[%clk 0:00:18]}  Kf6 {[%clk 0:00:18]} 47. Nf4 {[%clk 0:00:18]}  Ng6 {[%clk 0:00:17]} 48. h7 {[%clk 0:00:19]}  Kg7 {[%clk 0:00:14]} 49. Kc7 {[%clk 0:00:17]}  Kxh7 {[%clk 0:00:14]} 50. Nd3 {[%clk 0:00:17]}  Kg7 {[%clk 0:00:13]} 51. Kd6 {[%clk 0:00:17]}  Kf6 {[%clk 0:00:12]} 52. Bh5 {[%clk 0:00:17]}  f4 {[%clk 0:00:11]} 53. Bd1 {[%clk 0:00:17]}  f3 {[%clk 0:00:11]} 54. Nf2 {[%clk 0:00:17]}  Nf5+ {[%clk 0:00:10]} 55. Kc5 {[%clk 0:00:17]}  Ne3 {[%clk 0:00:11]} 56. Bxf3 {[%clk 0:00:16]}  Ne5 {[%clk 0:00:10]} 57. Be2 {[%clk 0:00:13]}  Nf5 {[%clk 0:00:11]} 58. Kb4 {[%clk 0:00:09]}  Ke7 {[%clk 0:00:11]} 59. Kc5 {[%clk 0:00:09]}  Nd7+ {[%clk 0:00:11]} 60. Kb4 {[%clk 0:00:09]}  Kd6 {[%clk 0:00:10]} 61. Kc3 {[%clk 0:00:10]}  e5 {[%clk 0:00:10]} 62. Bg4 {[%clk 0:00:09]}  Ne3 {[%clk 0:00:08]} 63. Bh3 {[%clk 0:00:08]}  f5 {[%clk 0:00:07]} 64. Kd3 {[%clk 0:00:08]}  d4 {[%clk 0:00:08]} 65. Ke2 {[%clk 0:00:03]}  e4 {[%clk 0:00:06]} 66. Kd2 {[%clk 0:00:01]}  Nc5 {[%clk 0:00:06]} 67. Ke2 {[%clk 0:00:02]}  Ke5 {[%clk 0:00:06]} 68. Kd2 {[%clk 0:00:02]}  f4 {[%clk 0:00:06]} 69. Ng4+ {[%clk 0:00:02]}  Nxg4 {[%clk 0:00:06]} 70. Bxg4 {[%clk 0:00:02]}  d3 {[%clk 0:00:05]} 71. Kc3 {[%clk 0:00:02]}  e3 {[%clk 0:00:05]} 72. Bf3 {[%clk 0:00:02]}  d2 {[%clk 0:00:05]} 73. Kc2 {[%clk 0:00:00]}  Ne4 {[%clk 0:00:05]} 0-1

[Event "November 21 Late 2023"]
[Site "https://www.chess.com"]
[Date "2023.11.21"]
[Round "5"]
[White "Luxama, Jacques Muller"]
[Black "Khater, Sherif"]
[Result "0-1"]
[Board "117"]
[TimeControl "180+1"]
[WhiteFideId "11900113"]
[BlackFideId "2034280"]
[WhiteElo "1931"]
[BlackElo "2506"]
[WhiteTeam "HAI"]
[BlackTeam "USA"]
[WhiteClock "0:00:07"]
[BlackClock "0:00:14"]

1. e4 {[%clk 0:03:00]}  a6 {[%clk 0:02:58]} 2. d4 {[%clk 0:02:59]}  c6 {[%clk 0:02:58]} 3. Nc3 {[%clk 0:02:58]}  d5 {[%clk 0:02:58]} 4. Nf3 {[%clk 0:02:57]}  dxe4 {[%clk 0:02:58]} 5. Nxe4 {[%clk 0:02:56]}  Nf6 {[%clk 0:02:58]} 6. Neg5 {[%clk 0:02:51]}  Nbd7 {[%clk 0:02:50]} 7. Bc4 {[%clk 0:02:49]}  e6 {[%clk 0:02:50]} 8. Qe2 {[%clk 0:02:47]}  Nb6 {[%clk 0:02:50]} 9. Bb3 {[%clk 0:02:46]}  Bd6 {[%clk 0:02:47]} 10. O-O {[%clk 0:02:42]}  O-O {[%clk 0:02:45]} 11. a4 {[%clk 0:02:41]}  h6 {[%clk 0:02:43]} 12. Ne4 {[%clk 0:02:40]}  Nxe4 {[%clk 0:02:42]} 13. Qxe4 {[%clk 0:02:41]}  Bc7 {[%clk 0:02:38]} 14. a5 {[%clk 0:02:38]}  Nd5 {[%clk 0:02:38]} 15. c4 {[%clk 0:02:34]}  Nf6 {[%clk 0:02:34]} 16. Qh4 {[%clk 0:02:28]}  Nd7 {[%clk 0:02:25]} 17. Qh5 {[%clk 0:02:21]}  Nf6 {[%clk 0:02:22]} 18. Qh4 {[%clk 0:02:18]}  Nd7 {[%clk 0:02:22]} 19. Qh5 {[%clk 0:02:09]}  Qf6 {[%clk 0:02:02]} 20. Re1 {[%clk 0:01:58]}  Bf4 {[%clk 0:01:57]} 21. Bxf4 {[%clk 0:01:47]}  Qxf4 {[%clk 0:01:58]} 22. Bc2 {[%clk 0:01:44]}  Nf6 {[%clk 0:01:50]} 23. Qc5 {[%clk 0:01:43]}  Rd8 {[%clk 0:01:40]} 24. h3 {[%clk 0:01:36]}  Bd7 {[%clk 0:01:26]} 25. Re3 {[%clk 0:01:27]}  Be8 {[%clk 0:01:24]} 26. g3 {[%clk 0:01:18]}  Qc7 {[%clk 0:01:24]} 27. Kg2 {[%clk 0:01:17]}  Qd6 {[%clk 0:01:19]} 28. Qb6 {[%clk 0:01:12]}  Nd7 {[%clk 0:01:09]} 29. Qb3 {[%clk 0:01:06]}  c5 {[%clk 0:01:05]} 30. Rd1 {[%clk 0:01:03]}  Qc7 {[%clk 0:01:04]} 31. d5 {[%clk 0:01:02]}  exd5 {[%clk 0:00:58]} 32. Rxd5 {[%clk 0:01:01]}  Nf6 {[%clk 0:00:57]} 33. Rxd8 {[%clk 0:00:54]}  Rxd8 {[%clk 0:00:57]} 34. Qc3 {[%clk 0:00:54]}  Bc6 {[%clk 0:00:53]} 35. Kh2 {[%clk 0:00:53]}  Qd6 {[%clk 0:00:44]} 36. Ne5 {[%clk 0:00:52]}  Qd2 {[%clk 0:00:38]} 37. Kg1 {[%clk 0:00:39]}  Qc1+ {[%clk 0:00:26]} 38. Re1 {[%clk 0:00:38]}  Qd2 {[%clk 0:00:24]} 39. Nxc6 {[%clk 0:00:38]}  bxc6 {[%clk 0:00:22]} 40. Rd1 {[%clk 0:00:23]}  Qxd1+ {[%clk 0:00:18]} 41. Bxd1 {[%clk 0:00:22]}  Rxd1+ {[%clk 0:00:19]} 42. Kg2 {[%clk 0:00:22]}  Rd7 {[%clk 0:00:16]} 43. Qe5 {[%clk 0:00:21]}  Rd2 {[%clk 0:00:15]} 44. Qc3 {[%clk 0:00:10]}  Rxf2+ {[%clk 0:00:13]} 45. Kxf2 {[%clk 0:00:08]}  Ne4+ {[%clk 0:00:13]} 46. Ke3 {[%clk 0:00:09]}  Nxc3 {[%clk 0:00:14]} 47. bxc3 {[%clk 0:00:09]}  Kf8 {[%clk 0:00:14]} 48. Ke4 {[%clk 0:00:10]}  Ke7 {[%clk 0:00:15]} 49. Ke5 {[%clk 0:00:11]}  f6+ {[%clk 0:00:15]} 50. Kf5 {[%clk 0:00:10]}  Kf7 {[%clk 0:00:15]} 51. g4 {[%clk 0:00:11]}  g6+ {[%clk 0:00:15]} 52. Ke4 {[%clk 0:00:11]}  Ke6 {[%clk 0:00:16]} 53. Kf4 {[%clk 0:00:11]}  f5 {[%clk 0:00:14]} 54. gxf5+ {[%clk 0:00:11]}  gxf5 {[%clk 0:00:15]} 55. h4 {[%clk 0:00:11]}  Kf6 {[%clk 0:00:12]} 56. h5 {[%clk 0:00:10]}  Ke6 {[%clk 0:00:12]} 57. Ke3 {[%clk 0:00:08]}  Ke5 {[%clk 0:00:13]} 58. Kf3 {[%clk 0:00:08]}  f4 {[%clk 0:00:13]} 59. Kg4 {[%clk 0:00:09]}  Ke4 {[%clk 0:00:14]} 60. Kh4 {[%clk 0:00:08]}  f3 {[%clk 0:00:14]} 61. Kg4 {[%clk 0:00:07]}  f2 {[%clk 0:00:14]} 0-1